fUST/lending_fUST_20251018
["ID","MTS","AMOUNT","RATE_DAILY","PERIOD"]
[391659882,1760722245000,-160.0,0.00027667,3]
[391659884,1760722245008,-151.0,0.00027669,30]
[391659886,1760722245018,-151.0,0.00027669,30]
[391659888,1760722245028,-151.0,0.00027669,30]
[391659890,1760722245038,-151.0,0.00027669,30]
[391659892,1760722245048,-152.283625,0.00027669,30]
[391659894,1760722245057,-151.0,0.00027669,30]
[391659896,1760722245067,-151.0,0.00027669,30]
[391659898,1760722245076,-151.0,0.00027669,30]
[391659900,1760722245086,-151.0,0.00027669,30]
[391659902,1760722245100,-151.0,0.00027669,30]
[391659904,1760722245109,-151.0,0.00027669,30]
[391659906,1760722245119,-151.0,0.00027669,30]
[391659908,1760722245128,-151.0,0.00027669,30]
[391659910,1760722245137,-151.0,0.00027669,30]
[391659912,1760722245146,-151.0,0.00027669,30]
[391659913,1760722245156,-151.0,0.00027669,30]
[391659915,1760722245165,-151.0,0.00027669,30]
[391659917,1760722245173,-151.0,0.00027669,30]
[391659919,1760722245182,-151.0,0.00027669,30]
[391659920,1760722245191,-151.0,0.00027669,30]
[391659922,1760722245201,-151.0,0.00027669,30]
[391659924,1760722245210,-158.916977,0.00027669,30]
[391659926,1760722245220,-151.0,0.00027669,30]
[391659928,1760722245229,-151.0,0.00027669,30]
[391659930,1760722245239,-151.0,0.00027669,30]
[391659932,1760722245248,-151.0,0.00027669,30]
[391659934,1760722245260,-285.116904,0.00027669,30]
[391659935,1760722245271,-151.0,0.00027669,30]
[391659937,1760722245280,-151.0,0.00027669,30]
[391659939,1760722245289,-151.0,0.00027669,30]
[391659941,1760722245300,-151.0,0.00027669,30]
[391659943,1760722245309,-151.0,0.00027669,30]
[391659945,1760722245318,-151.0,0.00027669,30]
[391659947,1760722245327,-181.599796,0.00027669,30]
[391659949,1760722245338,-415.477759,0.00027669,30]
[391659951,1760722245347,-415.477759,0.00027669,30]
[391659952,1760722245357,-415.477759,0.00027669,30]
[391659954,1760722245366,-415.477759,0.00027669,30]
[391659956,1760722245375,-415.477759,0.00027669,30]
[391659958,1760722245384,-415.477759,0.00027669,30]
[391659960,1760722245393,-415.477759,0.00027669,30]
[391659963,1760722245403,-415.477759,0.00027669,30]
[391659966,1760722245412,-415.477759,0.00027669,30]
[391659967,1760722245421,-415.477759,0.00027669,30]
[391659969,1760722245431,-151.0,0.00027669,30]
[391659971,1760722245440,-415.477759,0.00027669,30]
[391659973,1760722245449,-151.0,0.00027669,30]
[391659975,1760722245459,-415.477759,0.00027669,30]
[391659977,1760722245467,-151.0,0.00027669,30]
[391659979,1760722245476,-151.0,0.00027669,30]
[391659981,1760722245485,-151.0,0.00027669,30]
[391659983,1760722245494,-151.0,0.00027669,30]
[391659985,1760722245503,-151.0,0.00027669,30]
[391659987,1760722245513,-151.0,0.00027669,30]
[391659989,1760722245522,-152.383952,0.00027669,30]
[391659990,1760722245531,-252.431837,0.00027669,30]
[391659992,1760722245540,-252.431837,0.00027669,30]
[391659994,1760722245552,-252.431837,0.00027669,30]
[391659996,1760722245561,-252.431837,0.00027669,30]
[391659997,1760722245570,-252.431837,0.00027669,30]
[391659999,1760722245580,-252.431837,0.00027669,30]
[391660001,1760722245588,-252.431837,0.00027669,30]
[391660003,1760722245598,-252.431837,0.00027669,30]
[391660005,1760722245607,-151.0,0.00027669,30]
[391660007,1760722245617,-151.0,0.00027669,30]
[391660009,1760722245626,-151.0,0.00027669,30]
[391660011,1760722245643,-163.483409,0.00027669,30]
[391660013,1760722245654,-163.483409,0.00027669,30]
[391660015,1760722245682,-163.483409,0.00027669,30]
[391660017,1760722245691,-163.483409,0.00027669,30]
[391660019,1760722245701,-151.0,0.00027669,30]
[391660021,1760722245709,-151.0,0.00027669,30]
[391660023,1760722245719,-163.483409,0.00027669,30]
[391660024,1760722245727,-163.483409,0.00027669,30]
[391660026,1760722245737,-151.0,0.00027669,30]
[391660028,1760722245746,-151.0,0.00027669,30]
[391660030,1760722245756,-151.0,0.00027669,30]
[391660032,1760722245766,-151.0,0.00027669,30]
[391660034,1760722245776,-163.483409,0.00027669,30]
[391660036,1760722245786,-163.483409,0.00027669,30]
[391660038,1760722245795,-151.0,0.00027669,30]
[391660045,1760722245867,-151.0,0.00027669,30]
[391660047,1760722245876,-156.217096,0.00027669,30]
[391660049,1760722245885,-178.524651,0.00027669,30]
[391660051,1760722245895,-151.0,0.00027669,30]
[391660053,1760722245904,-176.771872,0.00027669,30]
[391660055,1760722245913,-151.0,0.00027669,30]
[391660057,1760722245922,-151.0,0.00027669,30]
[391660059,1760722245931,-151.0,0.00027669,30]
[391660060,1760722245941,-231.46192,0.00027669,30]
[391660062,1760722245950,-151.0,0.00027669,30]
[391660064,1760722245959,-151.0,0.00027669,30]
[391660066,1760722245968,-151.0,0.00027669,30]
[391660068,1760722245977,-3331.40872,0.00027669,30]
[391660070,1760722245987,-151.0,0.00027669,30]
[391660071,1760722245996,-151.0,0.00027669,30]
[391660073,1760722246005,-159.165709,0.00027669,30]
[391660075,1760722246014,-3331.40872,0.00027669,30]
[391660077,1760722246023,-3331.40872,0.00027669,30]
[391660079,1760722246032,-3331.40872,0.00027669,30]
[391660081,1760722246042,-336.881807,0.00027669,30]
[391660083,1760722246051,-500.0,0.00027669,2]
[391660084,1760722246060,-3331.40872,0.00027669,30]
[391660086,1760722246069,-336.881807,0.00027669,30]
[391660088,1760722246078,-3331.40872,0.00027669,30]
[391660090,1760722246087,-3331.40872,0.00027669,30]
[391660092,1760722246097,-336.881807,0.00027669,30]
[391660094,1760722246106,-151.0,0.00027669,30]
[391660096,1760722246115,-170.271576,0.00027669,30]
[391660098,1760722246124,-151.0,0.00027669,2]
[391660100,1760722246133,-3331.40872,0.00027669,30]
[391660102,1760722246142,-336.881807,0.00027669,30]
[391660103,1760722246151,-3331.40872,0.00027669,30]
[391660105,1760722246160,-336.881807,0.00027669,30]
[391660107,1760722246169,-3331.408723,0.00027669,30]
[391660109,1760722246178,-336.881807,0.00027669,30]
[391660111,1760722246187,-336.881807,0.00027669,30]
[391660113,1760722246197,-151.0,0.00027669,2]
[391660114,1760722246206,-336.881807,0.00027669,30]
[391660116,1760722246215,-336.881807,0.00027669,30]
[391660118,1760722246224,-336.881807,0.00027669,30]
[391660120,1760722246234,-336.881807,0.00027669,30]
[391660122,1760722246244,-500.0,0.00027669,2]
[391660124,1760722246257,-336.881805,0.00027669,30]
[391660126,1760722246267,-151.0,0.00027669,2]
[391660128,1760722246276,-151.0,0.00027669,30]
[391660130,1760722246286,-151.0,0.00027669,30]
[391660132,1760722246296,-500.0,0.00027669,2]
[391660133,1760722246305,-151.0,0.00027669,30]
[391660135,1760722246315,-209.97257618,0.00027669,2]
[391660137,1760722246326,-151.0,0.00027669,30]
[391660139,1760722246335,-151.0,0.00027669,2]
[391660141,1760722246345,-151.0,0.00027669,30]
[391660143,1760722246355,-151.0,0.00027669,30]
[391660145,1760722246364,-151.0,0.00027669,30]
[391660146,1760722246373,-151.0,0.00027669,30]
[391660148,1760722246382,-151.0,0.00027669,30]
[391660150,1760722246391,-176.089806,0.00027669,30]
[391660152,1760722246400,-176.089806,0.00027669,30]
[391660154,1760722246409,-176.089806,0.00027669,30]
[391660156,1760722246418,-176.089806,0.00027669,30]
[391660158,1760722246428,-176.089806,0.00027669,30]
[391660160,1760722246437,-176.089806,0.00027669,30]
[391660162,1760722246447,-176.089806,0.00027669,30]
[391660164,1760722246456,-176.089806,0.00027669,30]
[391660166,1760722246466,-176.089806,0.00027669,30]
[391660168,1760722246475,-176.089806,0.00027669,30]
[391660170,1760722246485,-176.089806,0.00027669,30]
[391660172,1760722246494,-176.089804,0.00027669,30]
[391660174,1760722246505,-151.0,0.00027669,30]
[391660175,1760722246518,-151.0,0.00027669,30]
[391660177,1760722246528,-319.888564,0.00027669,30]
[391660179,1760722246537,-319.888564,0.00027669,30]
[391660181,1760722246547,-319.888564,0.00027669,30]
[391660183,1760722246557,-319.888564,0.00027669,30]
[391660185,1760722246567,-319.888564,0.00027669,30]
[391660187,1760722246577,-319.888564,0.00027669,30]
[391660189,1760722246587,-319.888564,0.00027669,30]
[391660191,1760722246597,-319.888561,0.00027669,30]
[391660193,1760722246607,-151.0,0.00027669,30]
[391660195,1760722246617,-151.0,0.00027669,30]
[391660197,1760722246626,-151.0,0.00027669,30]
[391660199,1760722246636,-156.032862,0.00027669,30]
[391660201,1760722246645,-188.412199,0.00027669,30]
[391660203,1760722246655,-188.412199,0.00027669,30]
[391660204,1760722246664,-188.412199,0.00027669,30]
[391660206,1760722246674,-188.412199,0.00027669,30]
[391660208,1760722246683,-151.0,0.00027669,30]
[391660210,1760722246692,-188.412199,0.00027669,30]
[391660212,1760722246701,-151.0,0.00027669,30]
[391660214,1760722246710,-188.412199,0.00027669,30]
[391660216,1760722246719,-188.412199,0.00027669,30]
[391660218,1760722246728,-188.412207,0.00027669,30]
[391660220,1760722246738,-349.630046,0.00027669,15]
[391660222,1760722246748,-349.630046,0.00027669,15]
[391660224,1760722246758,-151.0,0.00027669,30]
[391660226,1760722246769,-151.0,0.00027669,30]
[391660228,1760722246778,-349.630046,0.00027669,15]
[391660230,1760722246788,-349.630046,0.00027669,15]
[391660232,1760722246797,-153.231127,0.00027669,30]
[391660233,1760722246807,-349.630046,0.00027669,15]
[391660235,1760722246816,-349.630046,0.00027669,15]
[391660237,1760722246826,-349.630046,0.00027669,15]
[391660239,1760722246835,-349.630056,0.00027669,15]
[391660241,1760722246844,-151.0,0.00027669,30]
[391660243,1760722246854,-151.0,0.00027669,30]
[391660245,1760722246864,-711.38366,0.00027669,30]
[391660247,1760722246873,-267.16175172,0.00027669,30]
[391660249,1760722246883,-711.38366,0.00027669,30]
[391660251,1760722246892,-151.0,0.00027669,30]
[391660253,1760722246901,-151.0,0.00027669,30]
[391660255,1760722246911,-711.38366,0.00027669,30]
[391660262,1760722246976,-711.38366,0.00027669,30]
[391660264,1760722246986,-163.811268,0.00027669,30]
[391660266,1760722246995,-711.38366,0.00027669,30]
[391660268,1760722247004,-711.38366,0.00027669,30]
[391660270,1760722247014,-711.38366,0.00027669,30]
[391660272,1760722247023,-711.383654,0.00027669,30]
[391660274,1760722247033,-176.022492,0.00027669,30]
[391660276,1760722247042,-176.022492,0.00027669,30]
[391660277,1760722247052,-176.022492,0.00027669,30]
[391660279,1760722247062,-176.022492,0.00027669,30]
[391660281,1760722247071,-176.022492,0.00027669,30]
[391660283,1760722247081,-176.022492,0.00027669,30]
[391660285,1760722247090,-176.022492,0.00027669,30]
[391660287,1760722247099,-176.022492,0.00027669,30]
[391660289,1760722247109,-160.0,0.0002767,10]
[391660291,1760722247119,-151.0,0.0002767,3]
[391660293,1760722247129,-164.76727802,0.0002767,3]
[391660295,1760722247138,-165.02581476,0.0002767,3]
[391660296,1760722247148,-151.0,0.0002767,3]
[391660298,1760722247157,-151.0,0.0002767,3]
[391660300,1760722247166,-151.0,0.0002767,3]
[391660302,1760722247177,-500.0,0.0002767,3]
[391660304,1760722247186,-151.0,0.0002767,3]
[391660306,1760722247195,-151.0,0.0002767,3]
[391660308,1760722247205,-151.0,0.0002767,3]
[391660310,1760722247215,-151.0,0.0002767,3]
[391660312,1760722247226,-151.88317647,0.0002767,3]
[391660314,1760722247235,-151.0,0.0002767,3]
[391660316,1760722247245,-151.0,0.0002767,2]
[391660318,1760722247256,-151.0,0.0002767,3]
[391660320,1760722247267,-151.0,0.0002767,3]
[391660322,1760722247276,-151.0,0.0002767,3]
[391660324,1760722247286,-500.0,0.00027673,5]
[391660326,1760722247295,-500.0,0.00027673,5]
[391660328,1760722247305,-500.0,0.00027673,5]
[391660329,1760722247315,-500.0,0.00027673,5]
[391660331,1760722247324,-500.0,0.00027673,2]
[391660333,1760722247335,-500.0,0.00027673,5]
[391660335,1760722247343,-165.45723164,0.00027673,5]
[391660337,1760722247352,-500.0,0.00027673,2]
[391660339,1760722247361,-500.0,0.00027673,5]
[391660341,1760722247370,-500.0,0.00027673,5]
[391660343,1760722247380,-519.80028365,0.00027673,5]
[391660345,1760722247389,-454.44553791,0.00027673,5]
[391660347,1760722247398,-500.0,0.00027673,5]
[391660349,1760722247408,-500.0,0.00027673,5]
[391660350,1760722247417,-500.0,0.00027673,5]
[391660352,1760722247426,-500.0,0.00027673,5]
[391660354,1760722247436,-183.36162969,0.00027673,5]
[391660356,1760722247445,-500.0,0.00027673,5]
[391660358,1760722247455,-500.0,0.00027673,5]
[391660360,1760722247464,-500.0,0.00027673,5]
[391660362,1760722247473,-500.0,0.00027673,5]
[391660364,1760722247482,-500.0,0.00027673,5]
[391660366,1760722247492,-500.0,0.00027673,2]
[391660368,1760722247501,-522.65227797,0.00027673,5]
[391660370,1760722247510,-500.0,0.00027673,5]
[391660372,1760722247520,-500.0,0.00027673,5]
[391660373,1760722247530,-500.0,0.00027673,5]
[391660375,1760722247539,-500.0,0.00027673,5]
[391660377,1760722247549,-500.0,0.00027673,5]
[391660379,1760722247561,-500.0,0.00027673,5]
[391660381,1760722247570,-500.75894299,0.00027673,5]
[391660383,1760722247581,-500.0,0.00027673,5]
[391660385,1760722247590,-500.0,0.00027673,5]
[391660387,1760722247600,-500.0,0.00027673,5]
[391660389,1760722247609,-500.69143102,0.00027673,5]
[391660391,1760722247619,-500.0,0.00027673,5]
[391660393,1760722247629,-500.0,0.00027673,5]
[391660395,1760722247641,-500.0,0.00027673,5]
[391660398,1760722247655,-500.0,0.00027673,5]
[391660399,1760722247665,-150.0,0.00027673,5]
[391660401,1760722247675,-500.0,0.00027673,3]
[391660403,1760722247685,-500.0,0.00027673,5]
[391660405,1760722247694,-574.10848858,0.00027673,5]
[391660407,1760722247705,-500.0,0.00027673,5]
[391660409,1760722247715,-500.0,0.00027673,5]
[391660411,1760722247724,-500.0,0.00027673,5]
[391660413,1760722247734,-500.0,0.00027673,5]
[391660415,1760722247745,-500.0,0.00027673,5]
[391660417,1760722247755,-500.0,0.00027673,5]
[391660419,1760722247767,-252.431837,0.00027673,30]
[391660421,1760722247778,-252.431837,0.00027673,30]
[391660423,1760722247788,-252.431837,0.00027673,30]
[391660425,1760722247798,-252.431829,0.00027673,30]
[391660427,1760722247808,-151.0,0.00027673,30]
[391660430,1760722247821,-163.483409,0.00027673,30]
[391660431,1760722247831,-163.483409,0.00027673,30]
[391660433,1760722247843,-151.0,0.00027673,30]
[391660435,1760722247859,-163.483409,0.00027673,30]
[391660437,1760722247876,-151.0,0.00027673,30]
[391660439,1760722247885,-151.0,0.00027673,30]
[391660441,1760722247895,-163.483417,0.00027673,30]
[391660443,1760722247904,-153.241545,0.00027673,30]
[391660445,1760722247914,-250.0,0.00027677,2]
[391660447,1760722247924,-327.0,0.00027688,2]
[391660449,1760722247934,-151.0,0.000277,12]
[391660451,1760722247944,-151.0,0.000277,16]
[391660453,1760722247954,-151.0,0.000277,15]
[391660455,1760722247964,-151.0,0.000277,13]
[391660463,1760722248027,-3392.42,0.000277,2]
[391660465,1760722248047,-596.3077118,0.00027724,2]
[391660467,1760722248057,-151.0,0.00027724,2]
[391660469,1760722248066,-151.0,0.00027724,2]
[391660470,1760722248075,-604.0,0.00027724,2]
[391660472,1760722248085,-151.0,0.00027724,2]
[391660474,1760722248094,-506.61418359,0.00027724,2]
[391660476,1760722248105,-151.0,0.00027724,2]
[391660478,1760722248115,-151.0,0.00027725,3]
[391660480,1760722248125,-151.0,0.00027725,3]
[391660482,1760722248135,-151.0,0.00027725,3]
[391660484,1760722248144,-151.0,0.00027725,3]
[391660486,1760722248155,-500.0,0.00027725,3]
[391660488,1760722248165,-294.10507866,0.00027725,3]
[391660490,1760722248174,-151.0,0.00027725,3]
[391660492,1760722248183,-151.0,0.00027725,3]
[391660494,1760722248194,-152.30866201,0.00027725,3]
[391660496,1760722248205,-151.0,0.00027725,3]
[391660498,1760722248215,-198.0,0.00027725,3]
[391660500,1760722248225,-151.0,0.00027725,3]
[391660502,1760722248235,-151.0,0.00027725,3]
[391660504,1760722248244,-4084.27078244,0.00027777,2]
[391660505,1760722248255,-151.0,0.00027779,2]
[391660507,1760722248270,-151.0,0.00027779,2]
[391660509,1760722248281,-151.46828703,0.00027779,2]
[391660511,1760722248291,-151.98571841,0.0002778,3]
[391660513,1760722248302,-151.0,0.0002778,3]
[391660515,1760722248312,-153.12360003,0.0002778,3]
[391660517,1760722248321,-151.0,0.0002778,3]
[391660519,1760722248332,-502.1875036,0.0002778,3]
[391660521,1760722248343,-151.0,0.0002778,3]
[391660522,1760722248355,-154.54621075,0.0002778,3]
[391660524,1760722248364,-244.44299064,0.0002778,3]
[391660526,1760722248374,-151.0,0.0002778,3]
[391660528,1760722248383,-151.0,0.0002778,3]
[391660530,1760722248392,-3691.0,0.00027785,2]
[391660531,1760722248401,-151.0,0.00027787,30]
[391660532,1760722248410,-151.0,0.00027787,30]
[391660533,1760722248420,-151.0,0.00027787,30]
[391660534,1760722248429,-151.0,0.00027787,30]
[391660535,1760722248439,-415.477759,0.00027787,30]
[391660536,1760722248448,-415.477759,0.00027787,30]
[391660537,1760722248457,-415.477759,0.00027787,30]
[391660538,1760722248466,-415.477759,0.00027787,30]
[391660539,1760722248474,-151.0,0.00027787,30]
[391660540,1760722248483,-153.991604,0.00027787,30]
[391660541,1760722248494,-151.0,0.000278,20]
[391660542,1760722248506,-151.0,0.000278,16]
[391660543,1760722248517,-151.0,0.000278,10]
[391660544,1760722248527,-1394.17374042,0.000278,2]
[391660545,1760722248536,-268.99991216,0.00027804,2]
[391660546,1760722248546,-300.0,0.0002781,5]
[391660547,1760722248555,-200.40783088,0.00027833,2]
[391660548,1760722248565,-151.0,0.00027833,2]
[391660549,1760722248575,-151.0,0.00027834,3]
[391660550,1760722248584,-219.65342865,0.00027834,3]
[391660551,1760722248593,-151.0,0.00027834,3]
[391660552,1760722248604,-154.13175971,0.00027834,3]
[391660553,1760722248613,-151.0,0.00027834,3]
[391660554,1760722248622,-151.0,0.00027853,30]
[391660555,1760722248631,-151.0,0.00027853,30]
[391660556,1760722248640,-151.0,0.00027853,30]
[391660557,1760722248649,-151.0,0.00027853,30]
[391660558,1760722248658,-415.477759,0.00027853,30]
[391660559,1760722248667,-415.477759,0.00027853,30]
[391660560,1760722248675,-415.477759,0.00027853,30]
[391660561,1760722248684,-415.477766,0.00027853,30]
[391660562,1760722248693,-151.0,0.00027853,30]
[391660563,1760722248702,-151.0,0.00027863,30]
[391660564,1760722248711,-151.0,0.00027863,30]
[391660566,1760722248721,-151.0,0.00027863,30]
[391660567,1760722248729,-151.0,0.00027863,30]
[391660569,1760722248739,-151.0,0.00027863,30]
[391660570,1760722248747,-151.0,0.00027863,30]
[391660572,1760722248757,-151.0,0.00027863,30]
[391660574,1760722248766,-4084.27078244,0.0002787,2]
[391660576,1760722248775,-500.0,0.00027873,5]
[391660578,1760722248785,-500.0,0.00027873,5]
[391660580,1760722248794,-500.0,0.00027873,5]
[391660582,1760722248804,-500.0,0.00027873,5]
[391660584,1760722248813,-500.0,0.00027873,5]
[391660586,1760722248823,-504.13021897,0.00027873,5]
[391660588,1760722248832,-500.0,0.00027873,5]
[391660590,1760722248841,-163.62541443,0.00027873,5]
[391660592,1760722248851,-500.0,0.00027873,5]
[391660594,1760722248860,-500.0,0.00027873,5]
[391660596,1760722248869,-500.0,0.00027873,5]
[391660598,1760722248878,-500.0,0.00027873,5]
[391660600,1760722248887,-500.0,0.00027873,5]
[391660602,1760722248896,-500.0,0.00027873,5]
[391660604,1760722248906,-500.0,0.00027873,5]
[391660606,1760722248915,-500.42966971,0.00027873,5]
[391660608,1760722248924,-500.0,0.00027873,5]
[391660610,1760722248933,-500.0,0.00027873,5]
[391660617,1760722248990,-500.0,0.00027873,5]
[391660619,1760722249003,-500.0,0.00027873,5]
[391660621,1760722249012,-485.0,0.00027873,5]
[391660623,1760722249023,-151.0,0.00027873,5]
[391660625,1760722249033,-524.0,0.00027873,5]
[391660627,1760722249042,-151.0,0.0002788,7]
[391660629,1760722249052,-151.0,0.0002788,7]
[391660631,1760722249061,-151.0,0.0002788,7]
[391660633,1760722249070,-151.0,0.0002788,7]
[391660635,1760722249079,-160.254453,0.0002788,30]
[391660637,1760722249088,-151.0,0.0002788,30]
[391660639,1760722249097,-311.653461,0.0002788,30]
[391660641,1760722249106,-311.653461,0.0002788,30]
[391660643,1760722249115,-311.653461,0.0002788,30]
[391660645,1760722249124,-151.0,0.0002788,30]
[391660647,1760722249134,-311.653461,0.0002788,30]
[391660649,1760722249143,-151.0,0.0002788,30]
[391660651,1760722249152,-151.0,0.0002788,30]
[391660653,1760722249161,-151.0,0.0002788,30]
[391660655,1760722249170,-151.0,0.0002788,30]
[391660657,1760722249179,-153.17050481,0.0002788,30]
[391660659,1760722249188,-151.0,0.0002788,30]
[391660661,1760722249197,-152.031456,0.0002788,30]
[391660663,1760722249207,-151.0,0.0002788,30]
[391660665,1760722249216,-171.069342,0.0002788,30]
[391660667,1760722249225,-171.069342,0.0002788,30]
[391660669,1760722249234,-171.069342,0.0002788,30]
[391660671,1760722249244,-151.0,0.0002788,30]
[391660673,1760722249254,-171.069342,0.0002788,30]
[391660675,1760722249267,-229.536777,0.0002788,30]
[391660677,1760722249276,-229.536777,0.0002788,30]
[391660679,1760722249286,-229.536777,0.0002788,30]
[391660681,1760722249295,-229.536777,0.0002788,30]
[391660683,1760722249305,-151.0,0.0002788,30]
[391660685,1760722249314,-151.0,0.0002788,30]
[391660687,1760722249323,-151.0,0.0002788,30]
[391660688,1760722249334,-151.0,0.0002788,30]
[391660690,1760722249343,-151.0,0.0002788,30]
[391660692,1760722249352,-193.408863,0.0002788,30]
[391660694,1760722249361,-214.91134,0.0002788,30]
[391660696,1760722249370,-214.91134,0.0002788,30]
[391660698,1760722249379,-160.0,0.0002788,30]
[391660700,1760722249388,-214.91134,0.0002788,30]
[391660702,1760722249397,-214.91134,0.0002788,30]
[391660705,1760722249415,-500.0,0.00027887,5]
[391660708,1760722249433,-500.0,0.00027887,5]
[391660711,1760722249452,-293.00650283,0.00027887,5]
[391660715,1760722249471,-9437.1475008,0.00027887,2]
[391660718,1760722249492,-151.0,0.00027888,2]
[391660720,1760722249507,-198.0,0.00027889,3]
[391660723,1760722249526,-151.0,0.00027889,3]
[391660725,1760722249540,-151.0,0.000279,19]
[391660728,1760722249557,-151.0,0.000279,12]
[391660731,1760722249575,-151.0,0.000279,15]
[391660735,1760722249597,-151.0,0.000279,12]
[391660737,1760722249609,-151.0,0.000279,17]
[391660740,1760722249627,-160.0,0.000279,2]
[391660742,1760722249642,-500.0,0.00027921,10]
[391660745,1760722249658,-485.0,0.00027928,5]
[391660747,1760722249670,-151.0,0.00027928,5]
[391660750,1760722249686,-524.0,0.00027928,5]
[391660752,1760722249700,-500.0,0.00027931,30]
[391660755,1760722249714,-4084.27078244,0.00027941,2]
[391660757,1760722249729,-151.97941303,0.00027943,2]
[391660760,1760722249743,-198.0,0.00027944,3]
[391660762,1760722249757,-4084.27078244,0.00027946,2]
[391660764,1760722249771,-450.0,0.00027947,5]
[391660767,1760722249785,-151.0,0.00027951,2]
[391660769,1760722249799,-261.96045651,0.00027951,2]
[391660772,1760722249812,-151.0,0.00027951,2]
[391660774,1760722249826,-151.0,0.00027951,2]
[391660777,1760722249839,-151.0,0.00027951,2]
[391660779,1760722249853,-151.0,0.00027951,2]
[391660782,1760722249869,-151.0,0.00027951,2]
[391660785,1760722249884,-151.0,0.00027951,2]
[391660787,1760722249899,-151.0,0.00027951,2]
[391660790,1760722249913,-250.0,0.00027951,2]
[391660792,1760722249928,-151.0,0.00027951,2]
[391660795,1760722249943,-250.0,0.00027951,2]
[391660797,1760722249955,-250.0,0.00027951,2]
[391660800,1760722249970,-250.0,0.00027951,2]
[391660802,1760722249984,-151.0,0.00027951,2]
[391660805,1760722249999,-151.0,0.00027951,2]
[391660807,1760722250013,-250.0,0.00027951,2]
[391660810,1760722250027,-151.0,0.00027951,2]
[391660812,1760722250041,-250.0,0.00027951,2]
[391660815,1760722250056,-151.0,0.00027951,2]
[391660826,1760722250152,-250.0,0.00027951,2]
[391660828,1760722250164,-151.0,0.00027951,2]
[391660830,1760722250174,-250.0,0.00027951,2]
[391660832,1760722250183,-151.0,0.00027951,2]
[391660834,1760722250193,-250.0,0.00027951,2]
[391660836,1760722250202,-151.0,0.00027951,2]
[391660838,1760722250211,-250.0,0.00027951,2]
[391660840,1760722250221,-250.0,0.00027951,2]
[391660842,1760722250230,-250.0,0.00027951,2]
[391660844,1760722250239,-250.0,0.00027951,2]
[391660846,1760722250249,-250.0,0.00027951,2]
[391660848,1760722250262,-250.0,0.00027951,2]
[391660850,1760722250272,-151.0,0.00027951,2]
[391660852,1760722250281,-151.0,0.00027951,2]
[391660854,1760722250291,-151.0,0.00027951,2]
[391660856,1760722250301,-151.0,0.00027951,2]
[391660858,1760722250310,-151.0,0.00027951,2]
[391660860,1760722250319,-151.0,0.00027951,2]
[391660862,1760722250329,-151.0,0.00027951,2]
[391660864,1760722250338,-151.0,0.00027951,2]
[391660866,1760722250348,-151.0,0.00027951,2]
[391660868,1760722250357,-151.0,0.00027951,2]
[391660870,1760722250367,-151.0,0.00027951,2]
[391660872,1760722250375,-151.0,0.00027951,2]
[391660874,1760722250385,-151.0,0.00027951,2]
[391660876,1760722250394,-151.0,0.00027951,2]